[Event "Live Chess"]
[Site "Chess.com"]
[Date "2023.05.20"]
[Round "-"]
[White "akp42"]
[Black "Nico14021974"]
[Result "1-0"]
[WhiteElo "1981"]
[BlackElo "993"]
[TimeControl "300"]
[EndTime "9:15:48 PDT"]
[Termination "akp42 won by checkmate"]

1. e4 {[%clk 0:04:59.3]} 1... e5 {[%clk 0:04:57.8]} 2. Nf3 {[%clk 0:04:58.1]}
2... f6 {[%clk 0:04:54.8]} 3. Bc4 {[%clk 0:04:55.5]} 3... b5 {[%clk 0:04:48.6]}
4. Bxb5 {[%clk 0:04:52.9]} 4... c6 {[%clk 0:04:46.1]} 5. Bc4 {[%clk 0:04:51.5]}
5... Ne7 {[%clk 0:04:41.8]} 6. O-O {[%clk 0:04:48.4]} 6... Na6 {[%clk
0:04:35.4]} 7. d4 {[%clk 0:04:46.6]} 7... exd4 {[%clk 0:04:33.1]} 8. Qxd4 {[%clk
0:04:43.9]} 8... Rg8 {[%clk 0:04:28.5]} 9. Bxg8 {[%clk 0:04:41]} 9... Nxg8
{[%clk 0:04:26]} 10. e5 {[%clk 0:04:36.9]} 10... fxe5 {[%clk 0:04:24.6]} 11.
Nxe5 {[%clk 0:04:35.6]} 11... Ne7 {[%clk 0:04:22.9]} 12. Qf4 {[%clk 0:04:30]}
12... Rb8 {[%clk 0:04:16.1]} 13. Qf7# {[%clk 0:04:28.7]} 1-0

[Event "Live Chess"]
[Site "Chess.com"]
[Date "2023.05.20"]
[Round "-"]
[White "OSmith06"]
[Black "ethanredball"]
[Result "1-0"]
[WhiteElo "1733"]
[BlackElo "548"]
[TimeControl "300"]
[EndTime "9:15:53 PDT"]
[Termination "OSmith06 won by checkmate"]

1. e4 {[%clk 0:04:57.2]} 1... e5 {[%clk 0:04:58.9]} 2. Nf3 {[%clk 0:04:56.2]}
2... Nc6 {[%clk 0:04:56.7]} 3. d4 {[%clk 0:04:55.2]} 3... exd4 {[%clk
0:04:54.7]} 4. Nxd4 {[%clk 0:04:55.1]} 4... Nxd4 {[%clk 0:04:53]} 5. Qxd4 {[%clk
0:04:55]} 5... Nf6 {[%clk 0:04:51.9]} 6. e5 {[%clk 0:04:53.1]} 6... Ng8 {[%clk
0:04:48.4]} 7. Nc3 {[%clk 0:04:51]} 7... f6 {[%clk 0:04:47.1]} 8. exf6 {[%clk
0:04:44]} 8... Nxf6 {[%clk 0:04:45.6]} 9. Bg5 {[%clk 0:04:33.9]} 9... Be7 {[%clk
0:04:40.9]} 10. O-O-O {[%clk 0:04:31.9]} 10... O-O {[%clk 0:04:39]} 11. Bc4+
{[%clk 0:04:30.8]} 11... Kh8 {[%clk 0:04:36.8]} 12. h4 {[%clk 0:04:20.6]} 12...
c5 {[%clk 0:04:28.2]} 13. Qd3 {[%clk 0:04:03.3]} 13... Rb8 {[%clk 0:04:19.9]}
14. h5 {[%clk 0:03:50.7]} 14... Qa5 {[%clk 0:04:17.3]} 15. h6 {[%clk 0:03:38.1]}
15... g6 {[%clk 0:04:15.3]} 16. Rhe1 {[%clk 0:03:34.4]} 16... Re8 {[%clk
0:04:11.7]} 17. Bxf6+ {[%clk 0:03:30.3]} 17... Bxf6 {[%clk 0:04:05.3]} 18. Rxe8#
{[%clk 0:03:28.2]} 1-0

[Event "Live Chess"]
[Site "Chess.com"]
[Date "2023.05.20"]
[Round "-"]
[White "wadsy27"]
[Black "ossie57"]
[Result "1-0"]
[WhiteElo "2584"]
[BlackElo "1874"]
[TimeControl "300"]
[EndTime "9:15:56 PDT"]
[Termination "wadsy27 won by checkmate"]

1. c4 {[%clk 0:04:56.9]} 1... c5 {[%clk 0:04:58.5]} 2. g3 {[%clk 0:04:54.9]}
2... Nc6 {[%clk 0:04:57.4]} 3. Bg2 {[%clk 0:04:54.3]} 3... g6 {[%clk 0:04:56.6]}
4. Nc3 {[%clk 0:04:53.7]} 4... Bg7 {[%clk 0:04:55.9]} 5. a3 {[%clk 0:04:51.6]}
5... e5 {[%clk 0:04:50.6]} 6. b4 {[%clk 0:04:48.6]} 6... cxb4 {[%clk 0:04:46.2]}
7. axb4 {[%clk 0:04:48]} 7... Nge7 {[%clk 0:04:38]} 8. b5 {[%clk 0:04:44.9]}
8... Nd4 {[%clk 0:04:32.9]} 9. Ba3 {[%clk 0:04:38.1]} 9... O-O {[%clk
0:04:31.6]} 10. Nf3 {[%clk 0:04:28.7]} 10... Nxf3+ {[%clk 0:04:27.1]} 11. Bxf3
{[%clk 0:04:26.6]} 11... f5 {[%clk 0:04:25.3]} 12. Nd5 {[%clk 0:04:23.3]} 12...
Bf6 {[%clk 0:04:04.2]} 13. d3 {[%clk 0:04:18.9]} 13... d6 {[%clk 0:03:47.5]} 14.
Nxf6+ {[%clk 0:04:17.4]} 14... Rxf6 {[%clk 0:03:46.3]} 15. h4 {[%clk 0:04:17.1]}
15... Rb8 {[%clk 0:03:27.4]} 16. Qd2 {[%clk 0:04:13.6]} 16... d5 {[%clk
0:03:19.4]} 17. Bxe7 {[%clk 0:04:10.6]} 17... Qxe7 {[%clk 0:03:17.7]} 18. Bxd5+
{[%clk 0:04:09.6]} 18... Kg7 {[%clk 0:03:13.1]} 19. h5 {[%clk 0:04:07.7]} 19...
f4 {[%clk 0:03:08.2]} 20. hxg6 {[%clk 0:03:41.9]} 20... hxg6 {[%clk 0:02:50.7]}
21. Rxa7 {[%clk 0:03:30.7]} 21... Qc5 {[%clk 0:02:45]} 22. Ra1 {[%clk
0:03:27.1]} 22... fxg3 {[%clk 0:02:43.2]} 23. Qh6# {[%clk 0:03:26.2]} 1-0

[Event "Live Chess"]
[Site "Chess.com"]
[Date "2023.05.20"]
[Round "-"]
[White "MaximKhimchenko"]
[Black "vinni3012"]
[Result "0-1"]
[WhiteElo "1364"]
[BlackElo "1868"]
[TimeControl "300"]
[EndTime "9:16:02 PDT"]
[Termination "vinni3012 won by checkmate"]

1. e4 {[%clk 0:04:57.1]} 1... c6 {[%clk 0:04:59]} 2. Nf3 {[%clk 0:04:57]} 2...
d5 {[%clk 0:04:57.7]} 3. exd5 {[%clk 0:04:56.9]} 3... cxd5 {[%clk 0:04:57.6]} 4.
d4 {[%clk 0:04:56.8]} 4... Nc6 {[%clk 0:04:55.5]} 5. c4 {[%clk 0:04:56.7]} 5...
Nf6 {[%clk 0:04:45.3]} 6. cxd5 {[%clk 0:04:56]} 6... Nxd5 {[%clk 0:04:45.2]} 7.
Bc4 {[%clk 0:04:54.5]} 7... Bg4 {[%clk 0:04:37.7]} 8. O-O {[%clk 0:04:51.8]}
8... e6 {[%clk 0:04:24.1]} 9. Nc3 {[%clk 0:04:50.3]} 9... Nb6 {[%clk 0:03:53.5]}
10. Bb3 {[%clk 0:04:34.3]} 10... Bxf3 {[%clk 0:03:17.4]} 11. Qxf3 {[%clk
0:04:30.9]} 11... Nxd4 {[%clk 0:03:15.8]} 12. Qe3 {[%clk 0:04:18]} 12... Nxb3
{[%clk 0:02:52.2]} 13. axb3 {[%clk 0:03:51.9]} 13... Nd5 {[%clk 0:02:27.4]} 14.
Nxd5 {[%clk 0:03:46.6]} 14... Qxd5 {[%clk 0:02:27.3]} 15. Rxa7 {[%clk 0:03:43]}
15... Rxa7 {[%clk 0:01:54.2]} 16. Qxa7 {[%clk 0:03:42.9]} 16... Be7 {[%clk
0:01:53.8]} 17. Qb8+ {[%clk 0:03:33.5]} 17... Bd8 {[%clk 0:01:51.9]} 18. Be3
{[%clk 0:03:26.4]} 18... O-O {[%clk 0:01:49.4]} 19. Qg3 {[%clk 0:03:19.4]} 19...
Qxb3 {[%clk 0:01:43.7]} 20. Rb1 {[%clk 0:03:08.5]} 20... Bf6 {[%clk 0:01:33.4]}
21. Bc1 {[%clk 0:02:53.8]} 21... Qd1# {[%clk 0:01:30.6]} 0-1

[Event "Live Chess"]
[Site "Chess.com"]
[Date "2023.05.20"]
[Round "-"]
[White "aliciabutteriss"]
[Black "JoshMcK"]
[Result "0-1"]
[WhiteElo "502"]
[BlackElo "1546"]
[TimeControl "300"]
[EndTime "9:16:04 PDT"]
[Termination "JoshMcK won by resignation"]

1. e4 {[%clk 0:04:59.5]} 1... d6 {[%clk 0:04:56.3]} 2. d4 {[%clk 0:04:57.6]}
2... Nf6 {[%clk 0:04:55.5]} 3. Nc3 {[%clk 0:04:54.6]} 3... g6 {[%clk 0:04:53.4]}
4. Nf3 {[%clk 0:04:52]} 4... Bg7 {[%clk 0:04:51.4]} 5. Bd3 {[%clk 0:04:47.6]}
5... O-O {[%clk 0:04:49.9]} 6. O-O {[%clk 0:04:47]} 6... Nc6 {[%clk 0:04:47.2]}
7. Bg5 {[%clk 0:04:37.8]} 7... h6 {[%clk 0:04:41.2]} 8. Bxf6 {[%clk 0:04:36.3]}
8... Bxf6 {[%clk 0:04:40.2]} 9. Qe2 {[%clk 0:04:31.6]} 9... Nxd4 {[%clk
0:04:35.8]} 10. Qe3 {[%clk 0:04:22.7]} 10... Nxf3+ {[%clk 0:04:27.8]} 11. gxf3
{[%clk 0:04:19.4]} 11... e5 {[%clk 0:04:25.4]} 12. Qxh6 {[%clk 0:04:17.4]} 12...
Bg5 {[%clk 0:04:22.5]} 13. Qxf8+ {[%clk 0:04:08.7]} 13... Kxf8 {[%clk
0:04:18.5]} 14. Ne2 {[%clk 0:03:56]} 14... Bf4 {[%clk 0:04:04.4]} 15. Nxf4
{[%clk 0:03:50.2]} 15... exf4 {[%clk 0:04:04.3]} 16. Kh1 {[%clk 0:03:46.1]}
16... Bh3 {[%clk 0:04:00.9]} 17. Rg1 {[%clk 0:03:43]} 17... Qh4 {[%clk
0:03:54.3]} 18. Raf1 {[%clk 0:03:32.7]} 18... Bxf1 {[%clk 0:03:51.1]} 19. Rxf1
{[%clk 0:03:31.9]} 19... Kg7 {[%clk 0:03:46.8]} 20. Bc4 {[%clk 0:03:19.3]} 20...
Rh8 {[%clk 0:03:45.2]} 0-1

[Event "Live Chess"]
[Site "Chess.com"]
[Date "2023.05.20"]
[Round "-"]
[White "killershark69420"]
[Black "CroasArRheun"]
[Result "0-1"]
[WhiteElo "315"]
[BlackElo "1839"]
[TimeControl "300"]
[EndTime "9:16:09 PDT"]
[Termination "CroasArRheun won by resignation"]

1. e4 {[%clk 0:04:56.1]} 1... e5 {[%clk 0:04:58.4]} 2. Nf3 {[%clk 0:04:50.9]}
2... Nc6 {[%clk 0:04:56.6]} 3. Nc3 {[%clk 0:04:47.8]} 3... Nf6 {[%clk
0:04:55.4]} 4. Bb5 {[%clk 0:04:45.4]} 4... Bb4 {[%clk 0:04:53.4]} 5. Bxc6 {[%clk
0:04:43.7]} 5... bxc6 {[%clk 0:04:51.7]} 6. d4 {[%clk 0:04:39]} 6... exd4 {[%clk
0:04:48.9]} 7. Nxd4 {[%clk 0:04:37]} 7... Nxe4 {[%clk 0:04:45]} 8. f3 {[%clk
0:04:33.1]} 8... Nxc3 {[%clk 0:04:38.4]} 9. bxc3 {[%clk 0:04:31.2]} 9... Bxc3+
{[%clk 0:04:36.8]} 10. Bd2 {[%clk 0:04:21.7]} 10... Bxd4 {[%clk 0:04:21.8]} 11.
Rb1 {[%clk 0:04:05.8]} 11... O-O {[%clk 0:04:17.7]} 12. Rb4 {[%clk 0:04:03.8]}
12... Re8+ {[%clk 0:04:15.8]} 13. Kf1 {[%clk 0:03:55.3]} 13... Ba6+ {[%clk
0:04:14.2]} 14. Qe2 {[%clk 0:03:47.5]} 14... Bxe2+ {[%clk 0:04:12.2]} 15. Ke1
{[%clk 0:03:44.2]} 15... Bxf3+ {[%clk 0:04:09.8]} 16. Kf1 {[%clk 0:03:39.4]}
16... Be2+ {[%clk 0:04:08.2]} 17. Ke1 {[%clk 0:03:36.6]} 17... Bg4+ {[%clk
0:03:57.8]} 18. Kf1 {[%clk 0:03:30.4]} 18... Qf6+ {[%clk 0:03:55.7]} 0-1

[Event "Live Chess"]
[Site "Chess.com"]
[Date "2023.05.20"]
[Round "-"]
[White "BJAW87"]
[Black "martinsmartin63"]
[Result "1-0"]
[WhiteElo "1472"]
[BlackElo "760"]
[TimeControl "300"]
[EndTime "9:16:17 PDT"]
[Termination "BJAW87 won by resignation"]

1. e4 {[%clk 0:04:58.8]} 1... e5 {[%clk 0:04:57.3]} 2. Nc3 {[%clk 0:04:57.6]}
2... Nc6 {[%clk 0:04:53.7]} 3. f4 {[%clk 0:04:56.7]} 3... d6 {[%clk 0:04:50.9]}
4. fxe5 {[%clk 0:04:55.7]} 4... dxe5 {[%clk 0:04:46.9]} 5. Nf3 {[%clk
0:04:54.9]} 5... Nf6 {[%clk 0:04:43.3]} 6. Bb5 {[%clk 0:04:47.8]} 6... Bd7
{[%clk 0:04:14.1]} 7. O-O {[%clk 0:04:39.7]} 7... Bb4 {[%clk 0:03:26.9]} 8. d3
{[%clk 0:04:23.5]} 8... Nd4 {[%clk 0:03:21.2]} 9. Bxd7+ {[%clk 0:04:21.4]} 9...
Qxd7 {[%clk 0:03:18.2]} 10. Nxe5 {[%clk 0:04:03.5]} 10... Qe7 {[%clk 0:03:09.7]}
11. Nf3 {[%clk 0:03:46.7]} 11... Nxf3+ {[%clk 0:03:04.1]} 12. Qxf3 {[%clk
0:03:46.6]} 12... O-O {[%clk 0:02:57.7]} 13. Bg5 {[%clk 0:03:32.7]} 13... Qc5+
{[%clk 0:02:52.6]} 14. Be3 {[%clk 0:03:18.4]} 14... Qd6 {[%clk 0:02:42.7]} 15.
Ne2 {[%clk 0:03:06.6]} 15... Bc5 {[%clk 0:02:36.7]} 16. d4 {[%clk 0:02:54.3]}
16... Bb6 {[%clk 0:02:30.2]} 17. e5 {[%clk 0:02:52.2]} 17... Qc6 {[%clk
0:02:24.9]} 18. Qxc6 {[%clk 0:02:49.8]} 18... bxc6 {[%clk 0:02:21.6]} 19. exf6
{[%clk 0:02:48.9]} 19... gxf6 {[%clk 0:02:16.6]} 20. Rxf6 {[%clk 0:02:48.2]}
20... Rfe8 {[%clk 0:02:08.7]} 21. Rf3 {[%clk 0:02:27.5]} 21... Rad8 {[%clk
0:02:00.6]} 22. c3 {[%clk 0:02:25.7]} 22... c5 {[%clk 0:01:57.4]} 23. dxc5
{[%clk 0:02:15.8]} 23... Bxc5 {[%clk 0:01:51.2]} 24. Bxc5 {[%clk 0:02:13]} 24...
Rd2 {[%clk 0:01:49]} 25. Nf4 {[%clk 0:01:50.6]} 25... Red8 {[%clk 0:01:41.6]}
26. Rg3+ {[%clk 0:01:48.3]} 26... Kh8 {[%clk 0:01:35]} 27. Bd4+ {[%clk
0:01:47.3]} 27... R8xd4 {[%clk 0:01:23.3]} 28. cxd4 {[%clk 0:01:47.2]} 1-0

[Event "Live Chess"]
[Site "Chess.com"]
[Date "2023.05.20"]
[Round "-"]
[White "JoeyCage"]
[Black "BearFromUkraine"]
[Result "1-0"]
[WhiteElo "2313"]
[BlackElo "1190"]
[TimeControl "300"]
[EndTime "9:16:17 PDT"]
[Termination "JoeyCage won by resignation"]

1. e4 {[%clk 0:04:55.5]} 1... e5 {[%clk 0:04:58.6]} 2. Nf3 {[%clk 0:04:53.7]}
2... Nc6 {[%clk 0:04:57.9]} 3. Bb5 {[%clk 0:04:52.6]} 3... a6 {[%clk 0:04:56.4]}
4. Bxc6 {[%clk 0:04:51.6]} 4... dxc6 {[%clk 0:04:55.7]} 5. d4 {[%clk 0:04:51.5]}
5... exd4 {[%clk 0:04:54.1]} 6. Qxd4 {[%clk 0:04:50.9]} 6... Qxd4 {[%clk
0:04:52.8]} 7. Nxd4 {[%clk 0:04:50.2]} 7... Bc5 {[%clk 0:04:42.9]} 8. Be3 {[%clk
0:04:48.3]} 8... Bxd4 {[%clk 0:04:39.4]} 9. Bxd4 {[%clk 0:04:47.2]} 9... f6
{[%clk 0:04:19.9]} 10. Nc3 {[%clk 0:04:35.5]} 10... Ne7 {[%clk 0:04:15.6]} 11.
O-O-O {[%clk 0:04:32.7]} 11... Bd7 {[%clk 0:03:57.4]} 12. e5 {[%clk 0:04:29]}
12... fxe5 {[%clk 0:03:50.3]} 13. Bxe5 {[%clk 0:04:21]} 13... O-O-O {[%clk
0:03:48.4]} 14. Bxg7 {[%clk 0:04:18.9]} 14... Rhg8 {[%clk 0:03:39.5]} 15. Bf6
{[%clk 0:04:17.5]} 15... Rge8 {[%clk 0:03:03.5]} 16. Rhe1 {[%clk 0:04:10.7]}
16... Ng6 {[%clk 0:02:50]} 17. Bxd8 {[%clk 0:04:08.6]} 17... Rxe1 {[%clk
0:02:47.5]} 18. Rxe1 {[%clk 0:04:06.5]} 18... Kxd8 {[%clk 0:02:46.8]} 19. g3
{[%clk 0:04:05.5]} 19... Nf8 {[%clk 0:02:13]} 20. Ne4 {[%clk 0:04:03.7]} 20...
Ne6 {[%clk 0:02:11.5]} 21. Nf6 {[%clk 0:04:00.7]} 21... b6 {[%clk 0:02:07]} 22.
Rd1 {[%clk 0:03:58.1]} 1-0

[Event "Live Chess"]
[Site "Chess.com"]
[Date "2023.05.20"]
[Round "-"]
[White "alexlines8"]
[Black "thrithik"]
[Result "1-0"]
[WhiteElo "1271"]
[BlackElo "587"]
[TimeControl "300"]
[EndTime "9:16:22 PDT"]
[Termination "alexlines8 won by checkmate"]

1. e4 {[%clk 0:04:59.2]} 1... g6 {[%clk 0:04:56.2]} 2. d4 {[%clk 0:04:57.4]}
2... f6 {[%clk 0:04:54.2]} 3. Nc3 {[%clk 0:04:55.7]} 3... Nh6 {[%clk 0:04:53.1]}
4. Nf3 {[%clk 0:04:52.2]} 4... Ng4 {[%clk 0:04:52]} 5. h3 {[%clk 0:04:46]} 5...
Bh6 {[%clk 0:04:50.3]} 6. hxg4 {[%clk 0:04:41.2]} 6... Bxc1 {[%clk 0:04:47.9]}
7. Qxc1 {[%clk 0:04:39.6]} 7... f5 {[%clk 0:04:43.3]} 8. gxf5 {[%clk 0:04:36]}
8... gxf5 {[%clk 0:04:39.6]} 9. e5 {[%clk 0:04:27.3]} 9... Rg8 {[%clk
0:04:33.6]} 10. Qh6 {[%clk 0:04:19.9]} 10... Rg4 {[%clk 0:04:24.6]} 11. Qh5+
{[%clk 0:04:03.8]} 11... Kf8 {[%clk 0:04:09.7]} 12. Qxf5+ {[%clk 0:04:01.8]}
12... Ke8 {[%clk 0:03:57.3]} 13. Qxg4 {[%clk 0:04:00.5]} 13... d6 {[%clk
0:03:52.4]} 14. Qg8+ {[%clk 0:03:58.3]} 14... Kd7 {[%clk 0:03:50]} 15. e6+
{[%clk 0:03:55.7]} 15... Kc6 {[%clk 0:03:44.6]} 16. Qxd8 {[%clk 0:03:55.2]}
16... Bxe6 {[%clk 0:03:40.4]} 17. Qxe7 {[%clk 0:03:52.1]} 17... Bg4 {[%clk
0:03:30]} 18. Qg5 {[%clk 0:03:44.8]} 18... Be6 {[%clk 0:03:25.6]} 19. Qb5#
{[%clk 0:03:42.6]} 1-0

[Event "Live Chess"]
[Site "Chess.com"]
[Date "2023.05.20"]
[Round "-"]
[White "PureMellowPlan"]
[Black "hturner40"]
[Result "0-1"]
[WhiteElo "597"]
[BlackElo "1872"]
[TimeControl "300"]
[EndTime "9:16:35 PDT"]
[Termination "hturner40 won by resignation"]

1. e4 {[%clk 0:04:52.6]} 1... Nc6 {[%clk 0:04:57.8]} 2. Nf3 {[%clk 0:04:50.6]}
2... e5 {[%clk 0:04:56.7]} 3. Nc3 {[%clk 0:04:47.9]} 3... Nf6 {[%clk 0:04:51.4]}
4. Bb5 {[%clk 0:04:45.8]} 4... Bd6 {[%clk 0:04:49.9]} 5. Bxc6 {[%clk 0:04:44.8]}
5... dxc6 {[%clk 0:04:47.5]} 6. O-O {[%clk 0:04:39.9]} 6... O-O {[%clk
0:04:43.7]} 7. d4 {[%clk 0:04:37.9]} 7... exd4 {[%clk 0:04:38.7]} 8. Nxd4 {[%clk
0:04:34.3]} 8... Qe7 {[%clk 0:04:32.7]} 9. Re1 {[%clk 0:04:30.7]} 9... Rd8
{[%clk 0:04:25.6]} 10. Be3 {[%clk 0:04:23.1]} 10... c5 {[%clk 0:04:04.7]} 11.
Nf5 {[%clk 0:04:20.1]} 11... Bxf5 {[%clk 0:04:01]} 12. exf5 {[%clk 0:04:16.5]}
12... Bxh2+ {[%clk 0:03:57]} 13. Kxh2 {[%clk 0:04:15.1]} 13... Rxd1 {[%clk
0:03:55.4]} 14. Rexd1 {[%clk 0:04:14.3]} 14... Ng4+ {[%clk 0:03:50.9]} 0-1

[Event "Live Chess"]
[Site "Chess.com"]
[Date "2023.05.20"]
[Round "-"]
[White "MaximKris"]
[Black "YF22Raptor"]
[Result "1-0"]
[WhiteElo "1794"]
[BlackElo "1024"]
[TimeControl "300"]
[EndTime "9:16:46 PDT"]
[Termination "MaximKris won by checkmate"]

1. e4 {[%clk 0:04:59.3]} 1... c6 {[%clk 0:04:58.3]} 2. Nf3 {[%clk 0:04:58.7]}
2... d5 {[%clk 0:04:56.8]} 3. Nc3 {[%clk 0:04:58.1]} 3... dxe4 {[%clk
0:04:54.6]} 4. Nxe4 {[%clk 0:04:58]} 4... Nf6 {[%clk 0:04:53.4]} 5. Nxf6+ {[%clk
0:04:57.2]} 5... exf6 {[%clk 0:04:51.9]} 6. d4 {[%clk 0:04:57.1]} 6... Bd6
{[%clk 0:04:48.6]} 7. Bd3 {[%clk 0:04:56.5]} 7... O-O {[%clk 0:04:47.1]} 8. O-O
{[%clk 0:04:56.1]} 8... Bg4 {[%clk 0:04:42.6]} 9. c3 {[%clk 0:04:55.5]} 9... Qc7
{[%clk 0:04:35]} 10. h3 {[%clk 0:04:53.5]} 10... Bxf3 {[%clk 0:04:33.9]} 11.
Qxf3 {[%clk 0:04:53.4]} 11... Nd7 {[%clk 0:04:31.2]} 12. Re1 {[%clk 0:04:50.7]}
12... Rae8 {[%clk 0:04:29.5]} 13. Rxe8 {[%clk 0:04:48]} 13... Rxe8 {[%clk
0:04:28.6]} 14. Be3 {[%clk 0:04:47.9]} 14... c5 {[%clk 0:04:21.1]} 15. dxc5
{[%clk 0:04:43.7]} 15... Nxc5 {[%clk 0:04:17.3]} 16. Bxc5 {[%clk 0:04:42.5]}
16... Bxc5 {[%clk 0:04:16]} 17. Qf5 {[%clk 0:04:40]} 17... Bd6 {[%clk
0:04:10.3]} 18. Qxh7+ {[%clk 0:04:38.2]} 18... Kf8 {[%clk 0:04:08.1]} 19. Qh8+
{[%clk 0:04:38.1]} 19... Ke7 {[%clk 0:04:07.1]} 20. Re1+ {[%clk 0:04:38]} 20...
Kd7 {[%clk 0:04:05]} 21. Qxe8# {[%clk 0:04:36.4]} 1-0

[Event "Live Chess"]
[Site "Chess.com"]
[Date "2023.05.20"]
[Round "-"]
[White "NAZRIZ1977"]
[Black "Enhard"]
[Result "1-0"]
[WhiteElo "2140"]
[BlackElo "1385"]
[TimeControl "300"]
[EndTime "9:17:00 PDT"]
[Termination "NAZRIZ1977 won by resignation"]

1. c4 {[%clk 0:04:58]} 1... c6 {[%clk 0:04:58.4]} 2. g3 {[%clk 0:04:57.2]} 2...
d5 {[%clk 0:04:55.7]} 3. Bg2 {[%clk 0:04:56.3]} 3... Nf6 {[%clk 0:04:52.8]} 4.
Nf3 {[%clk 0:04:54]} 4... Bf5 {[%clk 0:04:51.3]} 5. cxd5 {[%clk 0:04:52.7]} 5...
Nxd5 {[%clk 0:04:49.5]} 6. Qb3 {[%clk 0:04:50.5]} 6... Qb6 {[%clk 0:04:43.4]} 7.
Qxb6 {[%clk 0:04:49.4]} 7... axb6 {[%clk 0:04:42]} 8. O-O {[%clk 0:04:47]} 8...
h6 {[%clk 0:04:36.5]} 9. d3 {[%clk 0:04:46]} 9... Bh7 {[%clk 0:04:35.1]} 10. Nc3
{[%clk 0:04:43.6]} 10... Nxc3 {[%clk 0:04:29.4]} 11. bxc3 {[%clk 0:04:42.6]}
11... b5 {[%clk 0:04:26.9]} 12. Bf4 {[%clk 0:04:35.2]} 12... e6 {[%clk
0:04:24.6]} 13. Nd2 {[%clk 0:04:32]} 13... Be7 {[%clk 0:04:20.5]} 14. c4 {[%clk
0:04:31]} 14... b4 {[%clk 0:04:14.2]} 15. Nb3 {[%clk 0:04:18.2]} 15... O-O
{[%clk 0:04:09.9]} 16. c5 {[%clk 0:04:11.5]} 16... Na6 {[%clk 0:04:06.1]} 17.
Rfc1 {[%clk 0:04:09.3]} 17... Rfd8 {[%clk 0:03:43.3]} 18. a3 {[%clk 0:04:07.8]}
18... bxa3 {[%clk 0:03:34.9]} 19. Rxa3 {[%clk 0:04:06.6]} 19... Nb4 {[%clk
0:03:27]} 20. Rca1 {[%clk 0:03:58]} 20... Rxa3 {[%clk 0:03:17]} 21. Rxa3 {[%clk
0:03:56.9]} 21... Na6 {[%clk 0:03:04.6]} 22. Bxc6 {[%clk 0:03:47.9]} 22... Bxc5
{[%clk 0:02:58.2]} 23. Nxc5 {[%clk 0:03:33.5]} 23... Nxc5 {[%clk 0:02:54.7]} 24.
Bf3 {[%clk 0:03:27.7]} 24... Bg6 {[%clk 0:02:35.3]} 25. Be3 {[%clk 0:03:26.2]}
25... Nd7 {[%clk 0:02:14.2]} 26. Bxb7 {[%clk 0:03:19.9]} 26... Nf6 {[%clk
0:02:10.8]} 27. Ra8 {[%clk 0:03:14.8]} 27... Rxa8 {[%clk 0:02:07.8]} 28. Bxa8
{[%clk 0:03:13.8]} 28... Bf5 {[%clk 0:02:03.6]} 29. Kf1 {[%clk 0:03:11.4]} 29...
Bh3+ {[%clk 0:02:02]} 30. Kg1 {[%clk 0:03:07.2]} 30... Nd5 {[%clk 0:01:48.9]}
31. Bd2 {[%clk 0:03:05.8]} 31... Nc7 {[%clk 0:01:38.2]} 32. Bc6 {[%clk
0:03:02.2]} 32... Nd5 {[%clk 0:01:35.2]} 33. e4 {[%clk 0:02:58.6]} 33... Nf6
{[%clk 0:01:32.3]} 34. d4 {[%clk 0:02:54.3]} 34... h5 {[%clk 0:01:24.6]} 35. d5
{[%clk 0:02:50.6]} 35... Nxe4 {[%clk 0:01:20]} 36. dxe6 {[%clk 0:02:44.5]} 36...
Nxd2 {[%clk 0:01:06.1]} 37. e7 {[%clk 0:02:42.6]} 1-0

[Event "Live Chess"]
[Site "Chess.com"]
[Date "2023.05.20"]
[Round "-"]
[White "chrisbradgate"]
[Black "Supertromp"]
[Result "0-1"]
[WhiteElo "828"]
[BlackElo "2160"]
[TimeControl "300"]
[EndTime "9:17:02 PDT"]
[Termination "Supertromp won by checkmate"]

1. d4 {[%clk 0:04:58.1]} 1... Nf6 {[%clk 0:04:58.7]} 2. Bf4 {[%clk 0:04:55.2]}
2... g6 {[%clk 0:04:56.1]} 3. e3 {[%clk 0:04:52.5]} 3... Bg7 {[%clk 0:04:55.1]}
4. c3 {[%clk 0:04:50]} 4... O-O {[%clk 0:04:54.1]} 5. Bd3 {[%clk 0:04:38.9]}
5... d6 {[%clk 0:04:52]} 6. h3 {[%clk 0:04:31.8]} 6... Nbd7 {[%clk 0:04:48.5]}
7. Nf3 {[%clk 0:04:19.8]} 7... Re8 {[%clk 0:04:46.5]} 8. Nbd2 {[%clk 0:04:11.3]}
8... e5 {[%clk 0:04:41.7]} 9. dxe5 {[%clk 0:04:05.1]} 9... dxe5 {[%clk
0:04:41.6]} 10. Bg3 {[%clk 0:03:22.2]} 10... e4 {[%clk 0:04:39.4]} 11. Nxe4
{[%clk 0:03:21]} 11... Nxe4 {[%clk 0:04:37.3]} 12. Bxe4 {[%clk 0:03:18.4]} 12...
Rxe4 {[%clk 0:04:36.5]} 13. O-O {[%clk 0:03:11.4]} 13... Re8 {[%clk 0:04:18.1]}
14. Qc2 {[%clk 0:03:07.5]} 14... c6 {[%clk 0:03:22.8]} 15. Rad1 {[%clk
0:03:05.7]} 15... Qa5 {[%clk 0:03:20.4]} 16. a3 {[%clk 0:02:55.4]} 16... Nb6
{[%clk 0:02:59.1]} 17. Bc7 {[%clk 0:02:38.1]} 17... Qh5 {[%clk 0:02:54.2]} 18.
Bxb6 {[%clk 0:02:08.7]} 18... axb6 {[%clk 0:02:51]} 19. Kh2 {[%clk 0:01:43.6]}
19... Bxh3 {[%clk 0:02:46.1]} 20. gxh3 {[%clk 0:01:36.8]} 20... Qxf3 {[%clk
0:02:44.9]} 21. Rg1 {[%clk 0:01:19.6]} 21... Be5+ {[%clk 0:02:36.8]} 22. Rg3
{[%clk 0:01:15.8]} 22... Rad8 {[%clk 0:02:31.6]} 23. Rxd8 {[%clk 0:01:09.7]}
23... Rxd8 {[%clk 0:02:31.5]} 24. Qc1 {[%clk 0:00:54.7]} 24... Qxf2+ {[%clk
0:02:29.1]} 25. Kh1 {[%clk 0:00:46.5]} 25... Bxg3 {[%clk 0:02:29]} 26. Qg1
{[%clk 0:00:39.9]} 26... Qf3+ {[%clk 0:02:28.4]} 27. Qg2 {[%clk 0:00:36]} 27...
Rd1# {[%clk 0:02:28.3]} 0-1

[Event "Live Chess"]
[Site "Chess.com"]
[Date "2023.05.20"]
[Round "-"]
[White "MartinWalker4"]
[Black "MaximKhimchenko"]
[Result "1-0"]
[WhiteElo "2138"]
[BlackElo "1364"]
[TimeControl "300"]
[EndTime "9:17:09 PDT"]
[Termination "MartinWalker4 won by resignation"]

1. e4 {[%clk 0:04:55.1]} 1... e5 {[%clk 0:04:59.2]} 2. Nf3 {[%clk 0:04:53.1]}
2... Nc6 {[%clk 0:04:59.1]} 3. Bb5 {[%clk 0:04:51.7]} 3... Bc5 {[%clk
0:04:56.5]} 4. O-O {[%clk 0:04:49.4]} 4... Nf6 {[%clk 0:04:54.8]} 5. Qe2 {[%clk
0:04:47.6]} 5... Bd6 {[%clk 0:04:54.6]} 6. d4 {[%clk 0:04:40.2]} 6... exd4
{[%clk 0:04:53.5]} 7. Bxc6 {[%clk 0:04:38.2]} 7... dxc6 {[%clk 0:04:51.2]} 8. e5
{[%clk 0:04:36.7]} 8... O-O {[%clk 0:04:48.9]} 9. exd6 {[%clk 0:04:31.2]} 9...
Qxd6 {[%clk 0:04:46.3]} 10. Qe5 {[%clk 0:04:25.3]} 10... Qxe5 {[%clk 0:04:45.3]}
11. Nxe5 {[%clk 0:04:23.5]} 11... Re8 {[%clk 0:04:44.1]} 1-0